bitfinex-derivatives/quotes_SOLF0:USTF0_20251223
["timestamp","ask_amount","ask_price","bid_price","bid_amount"]
[1766448000445,3.42,125.92,125.8,0.05733382]
[1766448000634,3.42,125.92,125.71,200.86]
[1766448001540,0.00315241,125.83,125.8,0.052668]
[1766448001745,3.42,125.92,125.71,200.86]
[1766448002947,3.42,125.92,125.72,23.86]
[1766448003347,3.42,125.92,125.81,0.0528722]
[1766448003547,3.42,125.92,125.85,0.00186568]
[1766448003750,3.42,125.92,125.76,111.385]
[1766448003751,3.42,125.87,125.76,111.385]
[1766448004150,3.42,125.87,125.77,111.3806]
[1766448004448,3.42,125.87,125.81,0.05613287]
[1766448004651,0.06077668,125.83,125.81,0.05613287]
[1766448004846,3.47152402,125.83,125.77,7.1598]
[1766448005243,3.47152402,125.83,125.73,205.1081]
[1766448005550,3.42,125.83,125.76,7.1606]
[1766448005949,0.05038549,125.81,125.78,0.05370266]
[1766448007550,3.47038549,125.81,125.78,0.05370266]
[1766448007757,3.47038549,125.81,125.78,0.00370266]
[1766448016663,3.47038549,125.81,125.73,93.7]
[1766448016958,3.42,125.81,125.73,93.7]
[1766448017162,3.42,125.81,125.75,7.1611]
[1766448017557,3.4785031,125.79,125.75,7.1611]
[1766448018462,3.1e-06,125.79,125.75,7.1611]
[1766448018762,3.1e-06,125.79,125.76,7.1606]
[1766448019372,0.05358004,125.79,125.76,7.21931392]
[1766448021773,7.694e-05,125.79,125.76,3.69931392]
[1766448026176,7.694e-05,125.79,125.77,7.1601]
[1766448026563,7.1557,125.85,125.76,3.43871392]
[1766448026768,7.1557,125.85,125.76,3.38]
[1766448027678,0.05192348,125.82,125.79,0.05611731]
[1766448027974,0.05192348,125.82,125.78,7.1594]
[1766448028776,0.05192348,125.82,125.75,111.3961]
[1766448028964,0.05192348,125.82,125.77,0.05768859]
[1766448029563,0.05192348,125.82,125.77,7.21778859]
[1766448029768,0.05192348,125.82,125.77,0.05768859]
[1766448032781,0.05192348,125.82,125.76,7.1606]
[1766448033775,0.05192348,125.82,125.78,0.05749064]
[1766448034685,0.05192348,125.82,125.76,7.1606]
[1766448035681,7.20922348,125.82,125.78,0.00060103]
[1766448035987,0.05192348,125.82,125.78,0.00060103]
[1766448037586,7.158,125.81,125.78,0.00060103]
[1766448043578,0.05192348,125.82,125.78,0.00060103]
[1766448044088,0.05192348,125.82,125.78,3.29060103]
[1766448044287,0.05192348,125.82,125.78,10.45020103]
[1766448044993,0.05192348,125.82,125.78,3.29060103]
[1766448045179,0.05192348,125.82,125.78,0.00060103]
[1766448054396,7.20932348,125.82,125.78,0.00060103]
[1766448054600,0.05192348,125.82,125.78,0.00060103]
[1766448055701,7.1579,125.81,125.78,0.00060103]
[1766448069610,6.9411881,125.81,125.78,0.00060103]
[1766448075420,0.05192348,125.82,125.78,0.00060103]
[1766448077628,7.20952348,125.82,125.78,0.00060103]
[1766448083631,0.05192348,125.82,125.78,0.00060103]
[1766448085121,0.05192348,125.82,125.78,3.26060103]
[1766448096636,7.20942348,125.82,125.78,0.00060103]
[1766448097141,7.1581,125.81,125.78,0.00060103]
[1766448099243,7.1585,125.8,125.78,0.00060103]
[1766448116157,7.20972348,125.82,125.78,0.00060103]
[1766448116760,7.158,125.81,125.78,0.00060103]
[1766448121660,93.84,125.8,125.78,0.00060103]
[1766448126763,7.158,125.81,125.78,0.00060103]
[1766448126954,93.84,125.8,125.78,0.00060103]
[1766448127355,0.05192348,125.82,125.78,0.00060103]
[1766448128155,93.84,125.85,125.8,3.46]
[1766448128358,111.2823,125.89,125.8,3.46]
[1766448128555,93.84,125.88,125.8,3.46]
[1766448128751,93.84,125.87,125.81,10.6179]
[1766448129151,0.05537991,125.85,125.83,0.05983937]
[1766448129367,0.05537991,125.85,125.83,0.05739333]
[1766448129969,7.1532,125.9,125.83,3.51739333]
[1766448130169,1.91009743,125.91,125.83,3.46]
[1766448130370,93.84,125.9,125.83,3.46]
[1766448130560,93.82,125.9,125.84,3.46]
[1766448130756,111.2309,125.94,125.84,3.46]
[1766448130969,0.05706852,125.9,125.88,0.05030221]
[1766448131875,95.4,125.96,125.88,3.51030221]
[1766448132073,205.0422,125.95,125.88,3.46]
[1766448132367,100.9707,125.94,125.88,3.46]
[1766448132559,93.82,125.94,125.83,3.46]
[1766448132958,0.05725756,125.9,125.87,0.00447231]
[1766448133257,101.03025756,125.9,125.87,0.00447231]
[1766448151792,0.05725756,125.9,125.87,0.00447231]
[1766448152091,0.05725756,125.9,125.87,3.46447231]
[1766448154603,0.05725756,125.9,125.87,0.00447231]
[1766448155602,7.21015756,125.9,125.87,0.00447231]
[1766448162709,112.94868132,125.96,125.87,0.00447231]
[1766448162908,93.78,125.95,125.85,3.19]
[1766448163606,7.1512,125.93,125.87,3.19]
[1766448163800,0.051144,125.91,125.89,0.05443541]
[1766448164906,1.73338132,125.96,125.89,3.24443541]
[1766448165205,93.78,125.99,125.9,3.19]
[1766448165598,111.1682,126.02,125.92,3.19]
[1766448165795,93.76,126.01,125.92,3.19]
[1766448166004,0.06037564,125.98,125.95,0.0586902]
[1766448166208,93.82037564,125.98,125.92,3.19]
[1766448167214,93.82037564,125.98,125.94,0.05047501]
[1766448170314,100.96887564,125.98,125.94,0.05047501]
[1766448170499,100.96887564,125.98,125.94,0.00047501]
[1766448170900,7.1489,125.97,125.94,0.00047501]
[1766448171413,93.82037564,125.98,125.94,0.00047501]
[1766448172617,7.1495,125.96,125.94,0.00047501]
[1766448173318,100.96907564,125.98,125.94,0.00047501]
[1766448176316,7.1489,125.97,125.94,0.00047501]
[1766448191330,7.1495,125.96,125.94,0.00047501]
[1766448191532,93.72,125.95,125.94,0.00047501]
[1766448193235,100.8699,125.95,125.94,0.00047501]
[1766448196835,93.72,125.95,125.94,0.00047501]
[1766448200739,7.20877564,125.98,125.94,0.00047501]
[1766448200941,93.74,125.97,125.94,0.00047501]
[1766448201838,93.80037564,125.98,125.95,3.2]
[1766448204855,7.1469,126.01,125.95,3.2]
[1766448205153,93.72,126.0,125.95,3.2]
[1766448205954,0.06071437,125.99,125.96,0.05234548]
[1766448207452,0.06071437,125.99,125.96,3.25234548]
[1766448208150,7.20841437,125.99,125.96,3.25234548]
[1766448208351,7.20841437,125.99,125.96,0.05234548]
[1766448215559,100.92841437,125.99,125.96,0.05234548]
[1766448217870,7.20841437,125.99,125.96,0.05234548]
[1766448218074,100.90841437,125.99,125.96,0.05234548]
[1766448220273,100.90841437,125.99,125.96,0.00234548]
[1766448220572,7.1483,125.98,125.96,0.00234548]
[1766448222977,111.2226,125.95,125.87,3.36]
[1766448223271,111.2226,125.95,125.85,3.36]
[1766448223463,93.7,125.94,125.85,3.36]
[1766448223770,100.851,125.94,125.86,3.36]
[1766448223970,0.05754854,125.91,125.89,0.05421848]
[1766448232777,0.05754854,125.91,125.89,0.00421848]
[1766448235181,7.1504,125.95,125.89,3.36421848]
[1766448235386,93.74,125.94,125.89,3.36421848]
[1766448236384,0.05152613,125.93,125.89,10.51741848]
[1766448236575,0.00152613,125.93,125.89,3.36421848]
[1766448236778,111.142,126.05,125.9,114.6234]
[1766448236978,111.142,126.05,125.91,3.36]
[1766448236979,93.74,126.02,125.91,3.36]
[1766448237790,0.05284774,125.98,125.95,0.05577753]
[1766448238590,0.05284774,125.98,125.95,3.41577753]
[1766448239885,0.05284774,125.98,125.95,0.05577753]
[1766448244895,0.05284774,125.98,125.92,3.36]
[1766448246097,0.05284774,125.98,125.94,0.05642586]
[1766448247898,7.20124774,125.98,125.94,0.05642586]
[1766448254202,7.1488,125.97,125.94,0.05642586]
[1766448254401,93.72,125.96,125.94,0.05642586]
[1766448270711,100.8694,125.96,125.9,3.28]
[1766448271314,93.72,125.96,125.9,10.4327]
[1766448271514,93.72,125.96,125.91,3.28]
[1766448271811,0.06001442,125.95,125.92,0.05386583]
[1766448272705,0.06001442,125.95,125.92,0.00386583]
[1766448274628,7.21001442,125.95,125.92,0.00386583]
[1766448277122,7.1505,125.94,125.92,0.00386583]
[1766448277322,93.72,125.93,125.92,0.00386583]
[1766448288733,0.06001442,125.95,125.92,0.00386583]
[1766448288925,93.74,125.94,125.92,0.00386583]
[1766448291030,93.74,125.93,125.92,0.00386583]
[1766448304642,7.1506,125.94,125.92,0.00386583]
[1766448304847,100.8906,125.94,125.92,0.00386583]
[1766448325947,7.1506,125.94,125.92,0.00386583]
[1766448326147,93.74,125.93,125.92,0.00386583]
[1766448334146,93.80001442,125.95,125.92,0.00386583]
[1766448334352,93.74,125.94,125.92,0.00386583]
[1766448335965,100.8907,125.94,125.92,0.00386583]
[1766448337376,7.1511,125.93,125.92,0.00386583]
[1766448338169,7.21051442,125.95,125.92,0.00386583]
[1766448338754,93.74,125.94,125.92,0.00386583]
[1766448339271,100.8905,125.94,125.92,0.00386583]
[1766448345073,7.1511,125.93,125.92,0.00386583]
[1766448345371,0.06001442,125.95,125.92,0.00386583]
[1766448345572,93.74,125.94,125.92,0.00386583]
[1766448346072,100.8905,125.94,125.92,0.00386583]
[1766448348474,0.06001442,125.95,125.92,3.40386583]
[1766448370794,1.442e-05,125.95,125.92,3.40386583]
[1766448374895,1.71255996,125.98,125.92,3.40386583]
[1766448375102,0.00255996,125.98,125.92,3.40386583]
[1766448375398,93.74,126.01,125.92,3.40386583]
[1766448375592,93.74,126.01,125.92,3.4]
[1766448375793,100.887,126.01,125.93,3.39]
[1766448375989,0.06033959,125.98,125.96,0.05594737]
[1766448377303,0.00033959,125.98,125.96,3.44594737]
[1766448384801,11.47059401,126.03,125.96,3.44594737]
[1766448385002,93.72,126.02,125.96,3.44594737]
[1766448385912,0.05858144,126.0,125.96,3.44594737]
[1766448392016,100.8662,126.02,125.96,3.44594737]
[1766448393017,0.05724518,126.0,125.96,3.44594737]
[1766448393908,0.05724518,126.0,125.96,0.05594737]
[1766448394111,111.1875,125.99,125.92,3.34]
[1766448394419,204.8958,125.98,125.87,3.34]
[1766448394620,7.1495,125.96,125.89,3.34]
[1766448394810,93.7,125.98,125.89,3.34]
[1766448395209,0.05694245,125.95,125.92,3.39924255]
[1766448397010,0.05694245,125.95,125.84,214.84105668]
[1766448397211,111.2109,125.97,125.84,214.84105668]
[1766448398014,0.00140314,125.92,125.89,0.05732552]
[1766448398215,7.1499,125.95,125.87,7.1543]
[1766448398918,0.00090807,125.92,125.9,3.41093456]
[1766448402833,93.72,125.97,125.9,3.41093456]
[1766448403829,0.06051136,125.95,125.9,3.41093456]
[1766448414837,0.06051136,125.95,125.9,0.05093456]
[1766448415242,7.21071136,125.95,125.9,0.05093456]
[1766448425249,7.21071136,125.95,125.9,3.41093456]
[1766448425431,0.06051136,125.95,125.9,3.41093456]
[1766448443960,0.00051136,125.95,125.9,3.41093456]
[1766448446761,7.1474,126.0,125.91,3.22]
[1766448446955,10.5574,126.0,125.91,3.22]
[1766448447757,0.05788318,125.97,125.94,0.05473083]
[1766448449063,10.5574,126.0,125.94,0.05473083]
[1766448450261,0.0391058,125.98,125.94,0.05473083]
[1766448451066,3.41,126.0,125.94,0.05473083]
[1766448453168,3.41,126.0,125.94,7.20493083]
[1766448459879,11.47049401,126.03,125.94,7.20493083]
[1766448460086,3.22,126.06,125.97,0.05890232]
[1766448460378,3.22,126.06,126.0,0.05810886]
[1766448468795,3.22,125.97,125.9,3.19]
[1766448468991,3.22,125.99,125.9,3.19]
[1766448469504,10.368,125.99,125.9,3.19]
[1766448469686,0.0574988,125.96,125.93,0.05913641]
[1766448471200,3.2774988,125.96,125.93,0.05913641]
[1766448480400,3.22,125.95,125.9,3.19]
[1766448481293,3.22,125.95,125.91,0.05552106]
[1766448482406,7.2071988,125.96,125.91,0.05552106]
[1766448482607,10.4271988,125.96,125.91,3.24552106]
[1766448487207,0.0574988,125.96,125.91,3.24552106]
[1766448491800,3.3574988,125.96,125.91,0.05552106]
[1766448492002,3.3574988,125.96,125.91,3.33552106]
[1766448493420,0.0574988,125.96,125.91,3.33552106]
[1766448510632,7.2069988,125.96,125.91,3.33552106]
[1766448519039,0.0574988,125.96,125.91,3.33552106]
[1766448560561,7.2069988,125.96,125.91,3.33552106]
[1766448567261,0.0574988,125.96,125.91,3.33552106]
[1766448568167,3.3874988,125.96,125.91,3.33552106]
[1766448568364,3.33,125.95,125.91,0.05552106]
[1766448569669,7.1509,125.94,125.91,0.05552106]
[1766448569869,10.4809,125.94,125.91,0.05552106]
[1766448580473,3.4974988,125.96,125.91,3.53552106]
[1766448580671,0.0574988,125.96,125.91,3.53552106]
[1766448583567,93.74,125.97,125.91,3.53552106]
[1766448583772,1.40230517,126.01,125.92,3.48]
[1766448583973,3.44,126.03,125.93,3.48]
[1766448584571,0.05535741,125.99,125.93,3.48]
[1766448584772,0.05535741,125.99,125.97,0.06016537]
[1766448585080,0.05535741,125.99,125.97,0.05288695]
[1766448586566,7.1462,126.02,125.97,3.53288695]
[1766448586878,3.44,126.02,125.97,3.53288695]
[1766448587175,104.3252,126.04,125.97,3.53288695]
[1766448587380,3.44,126.03,125.97,3.53288695]
[1766448587879,93.74,126.04,125.97,3.53288695]
[1766448588972,3.44,126.05,125.98,3.48]
[1766448589274,3.44,126.05,126.0,0.05344341]
[1766448597775,3.44,126.04,126.0,0.05344341]
[1766448606584,10.585,126.04,126.0,0.05344341]
[1766448606784,3.51,126.03,126.0,0.05344341]
[1766448611787,3.51,126.03,126.0,0.00344341]
[1766448612188,3.51,126.02,125.95,10.3696]
[1766448612584,3.51,126.02,125.96,3.22]
[1766448613302,3.56475411,126.0,125.94,3.22]
[1766448613901,3.56475411,126.0,125.95,3.22]
[1766448614200,3.56475411,126.0,125.96,0.06075095]
[1766448615201,3.56475411,126.0,125.96,3.28075095]
[1766448620500,0.05475411,126.0,125.96,3.28075095]
[1766448630408,10.525,126.04,125.97,3.38]
[1766448630609,3.38,126.04,125.97,3.38]
[1766448631402,0.05239239,126.02,125.99,0.05158117]
[1766448632798,3.38,126.01,125.94,3.38]
[1766448633810,0.05673313,125.99,125.96,0.05536014]
[1766448637910,0.05673313,125.99,125.96,3.32536014]
[1766448640912,3.44,126.03,125.96,3.32536014]
[1766448641114,3.44,126.03,125.96,3.27]
[1766448641815,0.05342647,126.01,125.98,3.32495843]
[1766448649916,0.05342647,126.01,125.98,0.05495843]
[1766448650317,3.49342647,126.01,125.98,0.05495843]
[1766448651618,0.05342647,126.01,125.98,0.05495843]
[1766448655220,3.49342647,126.01,125.98,0.05495843]
[1766448664328,3.49342647,126.01,125.98,0.00495843]
[1766448665331,10.64012647,126.01,125.98,0.00495843]
[1766448667829,3.3,126.0,125.98,0.00495843]
[1766448676932,3.3,125.99,125.94,3.24]
[1766448677941,0.0563538,125.98,125.95,0.0561441]
[1766448678942,0.0563538,125.98,125.95,3.2961441]
[1766448679238,93.7,126.01,125.95,3.2961441]
[1766448679438,104.1463,126.02,125.95,3.2961441]
[1766448680143,0.0520311,126.0,125.95,3.2961441]
[1766448681145,3.3520311,126.0,125.95,3.2961441]
[1766448682440,10.4992311,126.0,125.95,3.2961441]
[1766448687752,104.1992311,126.0,125.95,3.2961441]
[1766448687952,10.4992311,126.0,125.95,3.2961441]
[1766448688149,104.1992311,126.0,125.95,3.2961441]
[1766448689653,10.4992311,126.0,125.95,3.2961441]
[1766448689843,104.1992311,126.0,125.95,3.2961441]
[1766448691655,10.4992311,126.0,125.95,3.2961441]
[1766448691855,104.1992311,126.0,125.95,3.2961441]
[1766448701961,3.18,125.99,125.95,3.2961441]
[1766448702168,93.7520311,126.0,125.95,3.2961441]
[1766448703170,3.18,125.99,125.95,0.0561441]
[1766448721090,0.0520311,126.0,125.95,3.4261441]
[1766448722390,7.1446,126.05,125.95,3.4261441]
[1766448722391,10.3246,126.05,125.95,3.4261441]
[1766448722582,3.18,126.04,125.96,3.37]
[1766448723278,3.18,126.04,125.99,0.05229386]
[1766448728379,10.325,126.04,125.99,0.05229386]
[1766448728579,3.29,126.03,125.99,0.05229386]
[1766448731993,10.4356,126.03,125.99,0.05229386]
[1766448732188,3.29,126.02,125.99,0.05229386]
[1766448739799,3.29,126.02,125.95,3.29]
[1766448740988,0.05229386,126.0,125.97,0.05327694]
[1766448741289,3.34229386,126.0,125.97,0.05327694]
[1766448744288,3.34229386,126.0,125.97,0.00327694]
[1766448761310,0.05229386,126.0,125.97,0.00327694]
[1766448764405,3.48,125.99,125.97,0.00327694]
[1766448827976,3.32930408,126.02,125.97,0.00327694]
[1766448828885,0.05,126.01,125.97,0.00327694]
[1766448830383,0.05,126.01,125.97,7.15197694]
[1766448831375,0.05,126.01,125.97,0.00327694]
[1766448856009,2.13102285,126.0,125.97,0.00327694]
[1766448868719,0.05,126.01,125.97,0.00327694]
[1766448869711,0.05,126.01,125.97,3.23327694]
[1766448872228,2.13102285,126.04,125.97,10.38187694]
[1766448872430,2.13102285,126.04,125.98,3.47]
[1766448872625,2.17102285,126.04,125.98,3.47]
[1766448873429,2.17102285,126.04,126.0,0.05782504]
[1766448875235,2.17102285,126.04,126.0,3.52782504]
[1766448877934,0.04,126.04,126.0,3.52782504]
[1766448878135,2.17102285,126.04,126.0,3.52782504]
[1766448881137,2.17102285,126.04,126.0,0.05782504]
[1766448881337,2.13102285,126.02,126.0,0.05782504]
[1766448889044,2.13102285,126.03,126.0,0.05782504]
[1766448894755,2.13102285,126.04,126.0,3.30782504]
[1766448901255,2.17102285,126.04,126.0,3.30782504]
[1766448901460,2.13102285,126.02,126.0,3.30782504]
[1766448902248,2.13102285,126.03,126.0,3.30782504]
[1766448908573,2.13102285,126.03,126.0,0.05782504]
[1766448910874,9.3251,126.04,126.0,0.05782504]
[1766448911074,2.13102285,126.03,126.0,0.05782504]
[1766448912082,4.31102285,126.03,126.0,0.05782504]
[1766448912384,4.25102285,126.01,125.95,13.33955668]
[1766448912582,2.13102285,125.99,125.95,3.47]
[1766448913286,2.13102285,125.99,125.96,3.5252195]
[1766448913685,4.25102285,126.01,125.96,3.5252195]
[1766448917990,2.12,126.01,125.96,3.5252195]
[1766448918180,10.47514959,126.02,125.96,3.5252195]
[1766448918582,12.65514959,126.02,125.96,3.5252195]
[1766448919889,2.18,126.01,125.96,3.5252195]
[1766448931295,5.50904959,126.03,125.96,3.5252195]
[1766448931494,5.50904959,126.03,125.98,0.05351624]
[1766448932407,2.18,126.02,125.98,0.05351624]
[1766448950417,5.50904959,126.01,125.98,0.05351624]
[1766448962036,111.1403,126.05,125.98,0.05351624]
[1766448962037,5.50904959,126.03,125.98,0.05351624]
[1766448963238,5.50904959,126.05,125.98,3.38351624]
[1766448964544,5.50904959,126.05,125.98,10.53161624]
[1766448964844,5.50904959,126.05,125.99,3.33]
[1766448965046,5.50904959,126.05,126.01,0.05596749]
[1766448967946,2.17,126.04,126.01,0.05596749]
[1766448975850,9.60869551,126.11,126.01,3.53596749]
[1766448976052,113.2515,126.11,126.05,0.0555105]
[1766448976241,2.17,126.09,126.05,0.0555105]
[1766448976443,2.17,126.07,126.01,3.48]
[1766448976740,5.49904959,126.06,126.01,3.48]
[1766448977145,5.49904959,126.04,125.96,3.48]
[1766448977350,0.05366348,126.01,125.99,3.5304361]
[1766448977649,2.17,126.04,125.99,3.5304361]
[1766448978156,2.12973363,126.03,125.99,3.5304361]
[1766448980755,2.12973363,126.01,125.99,0.0504361]
[1766448984356,4.30973363,126.01,125.99,0.0004361]
[1766448985457,4.36158065,126.01,125.99,0.0004361]
[1766448987051,212.24849551,126.08,125.99,0.0004361]
[1766448987052,2.23,126.09,126.0,3.29]
[1766448987256,4.35973363,126.08,126.02,3.29]
[1766448987853,2.23,126.07,126.02,3.29]
[1766448988053,2.12973363,126.06,126.03,0.05783178]
[1766448990562,4.35973363,126.06,126.0,96.95]
[1766448990861,2.17,126.05,126.0,3.29]
[1766448991160,2.17,126.05,126.0,96.95]
[1766448991663,0.05246545,126.04,126.01,0.05458285]
[1766448994856,0.05246545,126.04,126.01,3.34458285]
[1766448995662,2.12973363,126.06,126.01,3.34458285]
[1766448996161,2.17,126.07,126.01,3.34458285]
[1766448996773,2.17,126.14,126.06,3.21]
[1766448996951,2.17,126.14,126.08,3.21]
[1766448997159,2.17,126.14,126.09,0.05402096]
[1766448997768,4.29973363,126.13,126.09,0.05402096]
[1766448997971,4.29973363,126.13,126.1,0.00094591]
[1766448998155,2.12,126.12,126.1,0.00094591]
[1766448998464,2.12973363,126.09,126.02,3.36]
[1766448998667,2.12973363,126.11,126.03,3.36]
[1766448999164,204.7484,126.13,126.03,3.36]
[1766448999359,0.05631224,126.08,126.06,0.05230095]
[1766449000265,2.12973363,126.1,126.06,3.41230095]
[1766449000453,2.12973363,126.12,126.06,3.41230095]
[1766449002270,2.12973363,126.1,126.06,3.41230095]
[1766449008678,2.12973363,126.1,126.06,0.05230095]
[1766449008866,2.12973363,126.07,126.06,0.00230095]
[1766449009469,2.12973363,126.07,126.02,3.36]
[1766449010469,0.05230095,126.06,126.03,0.05394307]
[1766449010869,0.05230095,126.06,126.03,3.41394307]
[1766449013578,2.12973363,126.09,126.03,3.41394307]
[1766449013777,2.12973363,126.09,126.03,3.36]
[1766449014486,2.12973363,126.09,126.05,0.05370247]
[1766449018585,111.075,126.12,126.05,0.05370247]
[1766449018586,90.17,126.13,126.05,3.41370247]
[1766449018883,2.12973363,126.16,126.09,3.36]
[1766449019086,2.12973363,126.16,126.11,0.05800382]
[1766449019468,204.6775,126.19,126.11,3.41800382]
[1766449019787,110.9372,126.28,126.14,3.41905385]
[1766449020084,9.869088,126.32,126.19,3.36]
[1766449020085,2.12973363,126.27,126.19,3.36]
[1766449020281,2.12973363,126.26,126.2,3.41231351]
[1766449020674,110.927,126.29,126.2,3.36]
[1766449020979,2.12973363,126.25,126.22,0.0541848]
[1766449021487,2.12973363,126.23,126.22,0.0541848]
[1766449021678,2.12973363,126.24,126.22,0.0541848]
[1766449021980,110.927,126.29,126.22,0.0541848]
[1766449021981,2.12973363,126.27,126.22,0.0541848]
[1766449022286,110.9178,126.3,126.22,0.0541848]
[1766449022486,110.8855,126.34,126.25,0.05221131]
[1766449022487,110.8905,126.33,126.25,0.05221131]
[1766449022688,110.8905,126.33,126.28,0.00437688]
[1766449022689,110.9075,126.31,126.28,0.00437688]
[1766449022887,2.12973363,126.29,126.21,3.36]
[1766449023082,2.12973363,126.25,126.21,3.36]
[1766449023284,2.12973363,126.24,126.21,3.36]
[1766449023885,2.18227252,126.24,126.21,0.05536462]
[1766449024086,2.12973363,126.22,126.15,3.36]
[1766449024390,2.12973363,126.21,126.15,3.36]
[1766449024981,0.05575347,126.19,126.17,0.05756519]
[1766449025184,2.1854871,126.19,126.14,2.69583532]
[1766449026086,2.1854871,126.19,126.15,0.05871615]
[1766449027497,110.9374,126.28,126.16,3.49]
[1766449027794,2.12973363,126.25,126.16,3.49]
[1766449027985,99.28553206,126.27,126.16,3.49]
[1766449028598,0.05741032,126.23,126.16,3.49]
[1766449028801,0.05741032,126.23,126.14,2.69583532]
[1766449029000,5.68553206,126.24,126.14,6.18583532]
[1766449029192,5.68553206,126.24,126.15,3.49]
[1766449029495,210.22833206,126.27,126.17,3.49]
[1766449029698,0.05412647,126.23,126.21,0.0547973]
[1766449030285,0.05412647,126.23,126.21,0.0047973]
[1766449030489,0.05412647,126.23,126.15,3.49]
[1766449030699,5.68553206,126.24,126.15,3.49]
[1766449031491,0.06009648,126.21,126.18,0.05228429]
[1766449034407,0.06009648,126.21,126.12,10.6298]
[1766449034610,93.58,126.22,126.13,3.49]
[1766449035606,0.05918524,126.19,126.16,0.05158721]
[1766449040093,209.90172745,126.23,126.17,7.59390646]
[1766449040296,209.90172745,126.23,126.14,3.49]
[1766449040697,7.135,126.22,126.14,3.49]
[1766449041099,0.05708509,126.19,126.17,0.05490107]
[1766449045514,0.05708509,126.19,126.12,3.49]
[1766449045723,110.995,126.21,126.12,3.49]
[1766449046109,7.136,126.2,126.12,3.49]
[1766449046419,110.9854,126.22,126.12,3.49]
[1766449046607,0.05684504,126.18,126.16,0.05289631]
[1766449049319,0.05684504,126.18,126.16,0.00289631]
[1766449049621,0.05684504,126.18,126.11,3.49]
[1766449049814,10.45498854,126.2,126.11,3.49]
[1766449050517,0.05942729,126.17,126.14,0.05696898]
[1766449059123,0.05942729,126.17,126.1,10.8311]
[1766449059514,3.37821583,126.17,126.1,10.8311]
[1766449060329,3.37821583,126.17,126.12,0.06033391]
[1766449062519,0.05942729,126.17,126.12,0.06033391]
[1766449067927,0.05942729,126.17,126.12,3.75033391]
[1766449071530,3.31878854,126.2,126.13,3.69]
[1766449071725,3.31878854,126.2,126.14,3.69]
[1766449072536,3.37791394,126.18,126.13,3.69]
[1766449073638,3.37791394,126.18,126.14,0.05792059]
[1766449075239,0.0591254,126.18,126.14,3.74792059]
[1766449078145,3.31878854,126.2,126.14,3.74792059]
[1766449079251,0.06110868,126.18,126.14,3.74792059]
[1766449081151,0.00110868,126.18,126.14,3.74792059]
[1766449081356,63.5,126.21,126.14,3.74792059]
[1766449081562,3.91,126.28,126.19,7.26770363]
[1766449081846,7.22878854,126.28,126.2,7.26770363]
[1766449082043,3.91,126.31,126.2,211.82890363]
[1766449082240,3.91,126.29,126.2,218.96460363]
[1766449082441,0.06020863,126.26,126.23,0.06044598]
[1766449082753,0.06020863,126.26,126.2,93.56]
[1766449083843,0.06020863,126.26,126.22,0.05930208]
[1766449084451,7.28899717,126.26,126.22,0.05930208]
[1766449084643,3.91,126.25,126.2,93.56]
[1766449085248,3.91,126.25,126.18,100.80770363]
[1766449085450,3.91,126.25,126.18,93.54]
[1766449085752,0.05502269,126.23,126.2,0.05531016]
[1766449089158,3.31878854,126.22,126.14,14.40670363]
[1766449089459,9.50878854,126.22,126.15,93.52]
[1766449090061,0.05939489,126.2,126.17,0.05162186]
[1766449094861,6.24939489,126.2,126.17,0.05162186]
[1766449095060,9.56818343,126.2,126.12,14.40770363]
[1766449095369,9.50878854,126.2,126.12,14.40770363]
[1766449096066,0.05036873,126.17,126.15,0.05706845]
[1766449096557,0.00036873,126.17,126.15,0.05706845]
[1766449097062,6.19,126.22,126.15,0.05706845]
[1766449098061,0.05622496,126.2,126.15,0.05706845]
[1766449098364,0.05622496,126.2,126.15,7.19546845]
[1766449098967,0.05622496,126.2,126.15,0.05706845]
[1766449099662,6.24622496,126.2,126.15,0.05706845]
[1766449100164,8.37031453,126.2,126.15,0.05706845]
[1766449101566,6.24622496,126.2,126.15,0.05706845]
[1766449105964,6.19,126.25,126.15,0.05706845]
[1766449106267,6.19,126.25,126.16,100.80770363]
[1766449106959,0.05284475,126.22,126.19,0.05999521]
[1766449121580,0.00284475,126.22,126.19,0.05999521]
[1766449125073,0.00284475,126.22,126.19,7.32769884]
[1766449125885,0.00284475,126.22,126.19,14.46369884]